fUST/lending_fUST_20240226
["ID","MTS","AMOUNT","RATE_DAILY","PERIOD"]
[315213306,1708941616381,24900.0,0.00016674,2]
[315213308,1708941661720,1363.6060885,0.00016811,2]
[315213309,1708941681769,425.402383,0.00016811,2]
[315213310,1708941707046,16741.2122698,0.00016678,2]
[315213312,1708941822840,14886.9368189,0.00016491,2]
[315213313,1708941848067,20853.3530957,0.00016491,2]
[315213314,1708941911711,361.174523,0.00016616,2]
[315213315,1708941930618,250.0,0.00016493,2]
[315213324,1708942117139,24900.0,0.00016338,2]
[315213325,1708942117627,8462.49276203,0.00016493,2]
[315213359,1708942231755,-653.04920302,0.0001698,2]
[315213360,1708942231765,-1862.69232421,0.00016981,2]
[315213361,1708942231776,-4699.22949954,0.00016983,2]
[315213362,1708942231788,-300.0,0.00016985,2]
[315213363,1708942231799,-1222.59370947,0.00017003,2]
[315213388,1708942238426,-428.36024684,0.00016979,2]
[315213390,1708942238436,-811.40629053,0.00017003,2]
[315213392,1708942238445,-1225.4161547,0.00017008,2]
[315213394,1708942238454,-2150.93396772,0.00017028,2]
[315213396,1708942238466,-849.06603228,0.00017028,2]
[315213398,1708942238475,-4253.56900905,0.00019,2]
[315213400,1708942238486,-5101.3908573,0.00019,2]
[315213401,1708942238499,-1156.6432218,0.00019,2]
[315213403,1708942238510,-17402.7949452,0.00019,2]
[315213405,1708942238520,-486.2735679,0.00019,2]
[315213407,1708942238529,-578.65,0.00019178,2]
[315213409,1708942238539,-500.0,0.00019178,2]
[315213411,1708942238548,-500.0,0.00019178,2]
[315213413,1708942238558,-500.0,0.00019178,2]
[315213415,1708942238567,-349.00690786,0.00019178,2]
[315213417,1708942238576,-259.9324532,0.00019178,2]
[315213419,1708942238585,-500.0,0.00019178,2]
[315213421,1708942238594,-500.0,0.00019178,2]
[315213423,1708942238603,-1168.32,0.00019178,2]
[315213425,1708942238612,-500.0,0.00019178,2]
[315213427,1708942238621,-500.0,0.00019178,2]
[315213429,1708942238630,-506.01947048,0.00019178,2]
[315213431,1708942238639,-500.0,0.00019178,2]
[315213433,1708942238649,-500.0,0.00019178,2]
[315213434,1708942238657,-500.0,0.00019178,2]
[315213436,1708942238666,-185.27418586,0.00019178,2]
[315213438,1708942238676,-500.0,0.00019178,2]
[315213440,1708942238686,-641.08,0.00019178,2]
[315213442,1708942238695,-500.0,0.00019178,2]
[315213443,1708942238704,-518.49613271,0.00019178,2]
[315213445,1708942238713,-500.0,0.00019178,2]
[315213447,1708942238722,-500.0,0.00019178,2]
[315213449,1708942238731,-500.0,0.00019178,2]
[315213451,1708942238740,-693.68,0.00019178,2]
[315213453,1708942238749,-500.0,0.00019178,2]
[315213455,1708942238758,-500.0,0.00019178,2]
[315213457,1708942238767,-500.0,0.00019178,2]
[315213459,1708942238776,-387.37101494,0.00019178,2]
[315213461,1708942238785,-500.0,0.00019178,2]
[315213463,1708942238796,-500.0,0.00019178,2]
[315213465,1708942238806,-1560.3,0.00019178,2]
[315213467,1708942238816,-500.0,0.00019178,2]
[315213470,1708942238825,-501.16867912,0.00019178,2]
[315213471,1708942238836,-3093.34,0.00019178,2]
[315213473,1708942238845,-500.0,0.00019178,2]
[315213475,1708942238855,-500.0,0.00019178,2]
[315213477,1708942238864,-1315.56,0.00019178,2]
[315213480,1708942238875,-501.15891144,0.00019178,2]
[315213482,1708942238886,-500.0,0.00019178,2]
[315213484,1708942238895,-502.15505867,0.00019178,2]
[315213486,1708942238903,-500.0,0.00019178,2]
[315213488,1708942238912,-500.0,0.00019178,2]
[315213490,1708942238921,-500.0,0.00019178,2]
[315213492,1708942238930,-581.89,0.00019178,2]
[315213494,1708942238940,-1400.41,0.00019178,2]
[315213496,1708942238949,-500.0,0.00019178,2]
[315213498,1708942238958,-360.90910848,0.00019178,2]
[315213500,1708942238966,-500.0,0.00019178,2]
[315213502,1708942238976,-500.0,0.00019178,2]
[315213504,1708942238985,-500.0,0.00019178,2]
[315213506,1708942238996,-500.0,0.00019178,2]
[315213507,1708942239005,-500.0,0.00019178,2]
[315213510,1708942239014,-501.29706972,0.00019178,2]
[315213512,1708942239023,-501.00040851,0.00019178,2]
[315213514,1708942239039,-500.0,0.00019178,2]
[315213516,1708942239048,-500.0,0.00019178,2]
[315213518,1708942239057,-531.08,0.00019178,2]
[315213520,1708942239067,-500.0,0.00019178,2]
[315213522,1708942239077,-500.0,0.00019178,2]
[315213524,1708942239086,-500.0,0.00019178,2]
[315213526,1708942239095,-500.0,0.00019178,2]
[315213528,1708942239106,-500.0,0.00019178,2]
[315213530,1708942239115,-500.0,0.00019178,2]
[315213532,1708942239123,-500.0,0.00019178,2]
[315213534,1708942239134,-500.0,0.00019178,2]
[315213536,1708942239143,-500.0,0.00019178,2]
[315213538,1708942239152,-500.0,0.00019178,2]
[315213540,1708942239161,-500.0,0.00019178,2]
[315213542,1708942239170,-500.0,0.00019178,2]
[315213544,1708942239180,-500.76681216,0.00019178,2]
[315213545,1708942239189,-500.3462092,0.00019178,2]
[315213548,1708942239203,-500.0,0.00019178,2]
[315213550,1708942239212,-234.57397735,0.00019178,2]
[315213552,1708942239221,-500.0,0.00019178,2]
[315213554,1708942239230,-500.0,0.00019178,2]
[315213556,1708942239239,-359.8403748,0.00019178,2]
[315213558,1708942239248,-501.0884164,0.00019178,2]
[315213560,1708942239257,-500.0,0.00019178,2]
[315213562,1708942239266,-500.0,0.00019178,2]
[315213564,1708942239276,-500.89874379,0.00019178,2]
[315213566,1708942239286,-500.0,0.00019178,2]
[315213568,1708942239295,-500.0,0.00019178,2]
[315213570,1708942239303,-500.0,0.00019178,2]
[315213572,1708942239312,-500.0,0.00019178,2]
[315213574,1708942239321,-500.58116796,0.00019178,2]
[315213576,1708942239331,-500.0,0.00019178,2]
[315213578,1708942239340,-500.0,0.00019178,2]
[315213580,1708942239349,-500.0,0.00019178,2]
[315213582,1708942239358,-500.0,0.00019178,2]
[315213596,1708942239478,-1794.71,0.00019178,2]
[315213598,1708942239488,-266.51557641,0.00019178,2]
[315213600,1708942239497,-500.0,0.00019178,2]
[315213602,1708942239506,-501.13519098,0.00019178,2]
[315213604,1708942239515,-500.0,0.00019178,2]
[315213606,1708942239524,-500.0,0.00019178,2]
[315213608,1708942239533,-500.0,0.00019178,2]
[315213610,1708942239543,-500.0,0.00019178,2]
[315213612,1708942239552,-1457.65,0.00019178,2]
[315213614,1708942239561,-500.0,0.00019178,2]
[315213616,1708942239571,-500.0,0.00019178,2]
[315213618,1708942239580,-500.0,0.00019178,2]
[315213620,1708942239589,-151.48714558,0.00019178,2]
[315213622,1708942239599,-501.29954357,0.00019178,2]
[315213624,1708942239608,-500.0,0.00019178,2]
[315213626,1708942239617,-500.0,0.00019178,2]
[315213628,1708942239627,-500.0,0.00019178,2]
[315213630,1708942239636,-500.0,0.00019178,2]
[315213632,1708942239645,-500.0,0.00019178,2]
[315213634,1708942239654,-505.95058571,0.00019178,2]
[315213636,1708942239663,-500.0,0.00019178,2]
[315213638,1708942239673,-500.0,0.00019178,2]
[315213640,1708942239682,-646.85521638,0.00019178,2]
[315213642,1708942239691,-500.0,0.00019178,2]
[315213644,1708942239700,-500.0,0.00019178,2]
[315213646,1708942239710,-1297.16,0.00019178,2]
[315213648,1708942239720,-1252.13,0.00019178,2]
[315213650,1708942239730,-239.92493776,0.00019178,2]
[315213652,1708942239739,-741.42,0.00019178,2]
[315213654,1708942239749,-312.51592479,0.00019178,2]
[315213656,1708942239758,-500.0,0.00019178,2]
[315213658,1708942239769,-500.0,0.00019178,2]
[315213660,1708942239778,-509.9265336,0.00019178,2]
[315213662,1708942239788,-910.9,0.00019178,2]
[315213664,1708942239797,-500.0,0.00019178,2]
[315213666,1708942239806,-500.0,0.00019178,2]
[315213668,1708942239815,-1754.31,0.00019178,2]
[315213670,1708942239824,-500.0,0.00019178,2]
[315213672,1708942239834,-22037.8,0.00019178,2]
[315213674,1708942239843,-500.0,0.00019178,2]
[315213676,1708942239852,-500.0,0.00019178,2]
[315213679,1708942239861,-500.0,0.00019178,2]
[315213681,1708942239870,-7967.99,0.00019178,2]
[315213683,1708942239879,-500.0,0.00019178,2]
[315213685,1708942239889,-544.80572393,0.00019178,2]
[315213687,1708942239898,-2187.15,0.00019178,2]
[315213689,1708942239908,-500.0,0.00019178,2]
[315213691,1708942239917,-500.0,0.00019178,2]
[315213693,1708942239926,-500.0,0.00019178,2]
[315213695,1708942239935,-500.0,0.00019178,2]
[315213697,1708942239945,-840.49,0.00019178,2]
[315213699,1708942239955,-500.0,0.00019178,2]
[315213701,1708942239964,-500.0,0.00019178,2]
[315213703,1708942239974,-500.0,0.00019178,2]
[315213705,1708942239983,-500.0,0.00019178,2]
[315213707,1708942239993,-656.18,0.00019178,2]
[315213709,1708942240002,-500.0,0.00019178,2]
[315213711,1708942240012,-500.0,0.00019178,2]
[315213713,1708942240022,-500.0,0.00019178,2]
[315213715,1708942240031,-501.12566577,0.00019178,2]
[315213717,1708942240041,-503.09950777,0.00019178,2]
[315213719,1708942240050,-500.0,0.00019178,2]
[315213721,1708942240060,-1279.79,0.00019178,2]
[315213723,1708942240069,-500.0,0.00019178,2]
[315213725,1708942240078,-1005.8616059,0.00019178,2]
[315213726,1708942240087,-500.0,0.00019178,2]
[315213729,1708942240097,-3780.8,0.00019178,2]
[315213731,1708942240109,-510.75269847,0.00019178,2]
[315213733,1708942240119,-500.0,0.00019178,2]
[315213735,1708942240128,-2694.47,0.00019178,2]
[315213737,1708942240137,-810.17,0.00019178,2]
[315213739,1708942240146,-2573.28,0.00019178,2]
[315213741,1708942240157,-500.0,0.00019178,2]
[315213743,1708942240166,-212.2436076,0.00019178,2]
[315213745,1708942240175,-2511.9,0.00019178,2]
[315213747,1708942240185,-1674.37,0.00019178,2]
[315213749,1708942240194,-500.0,0.00019178,2]
[315213751,1708942240203,-500.0,0.00019178,2]
[315213753,1708942240212,-500.0,0.00019178,2]
[315213755,1708942240222,-500.0,0.00019178,2]
[315213757,1708942240231,-502.22509866,0.00019178,2]
[315213759,1708942240240,-501.65704131,0.00019178,2]
[315213761,1708942240249,-500.0,0.00019178,2]
[315213763,1708942240258,-500.0,0.00019178,2]
[315213765,1708942240267,-500.0,0.00019178,2]
[315213767,1708942240276,-500.0,0.00019178,2]
[315213769,1708942240285,-500.0,0.00019178,2]
[315213771,1708942240296,-22364.04,0.00019178,2]
[315213773,1708942240305,-500.0,0.00019178,2]
[315213775,1708942240314,-501.16145419,0.00019178,2]
[315213777,1708942240323,-500.0,0.00019178,2]
[315213779,1708942240332,-1000.0,0.00019178,2]
[315213781,1708942240342,-500.0,0.00019178,2]
[315213783,1708942240351,-500.0,0.00019178,2]
[315213785,1708942240360,-2229.23,0.00019178,2]
[315213787,1708942240368,-2069.57,0.00019178,2]
[315213789,1708942240377,-640.38620748,0.00019178,2]
[315213791,1708942240386,-500.0,0.00019178,2]
[315213793,1708942240395,-511.41656817,0.00019178,2]
[315213794,1708942240404,-500.0,0.00019178,2]
[315213797,1708942240413,-500.00000043,0.00019178,2]
[315213799,1708942240422,-500.87195388,0.00019178,2]
[315213801,1708942240432,-2035.92,0.00019178,2]
[315213803,1708942240441,-500.0,0.00019178,2]
[315213805,1708942240450,-500.0,0.00019178,2]
[315213807,1708942240459,-500.0,0.00019178,2]
[315213809,1708942240468,-500.0,0.00019178,2]
[315213811,1708942240477,-500.0,0.00019178,2]
[315213813,1708942240486,-500.0,0.00019178,2]
[315213815,1708942240495,-501.56333098,0.00019178,2]
[315213817,1708942240504,-500.0,0.00019178,2]
[315213818,1708942240513,-500.0,0.00019178,2]
[315213820,1708942240522,-500.0,0.00019178,2]
[315213822,1708942240531,-500.0,0.00019178,2]
[315213824,1708942240541,-500.20438763,0.00019178,2]
[315213827,1708942240551,-500.0,0.00019178,2]
[315213828,1708942240560,-500.0,0.00019178,2]
[315213831,1708942240569,-501.16229543,0.00019178,2]
[315213833,1708942240578,-850.07,0.00019178,2]
[315213835,1708942240587,-566.42558314,0.00019178,2]
[315213836,1708942240596,-10968.23,0.00019178,2]
[315213839,1708942240606,-2438.08,0.00019178,2]
[315213841,1708942240615,-500.0,0.00019178,2]
[315213843,1708942240626,-500.0,0.00019178,2]
[315213844,1708942240635,-500.0,0.00019178,2]
[315213846,1708942240644,-500.0,0.00019178,2]
[315213849,1708942240654,-500.0,0.00019178,2]
[315213851,1708942240663,-500.0,0.00019178,2]
[315213853,1708942240672,-501.32910414,0.00019178,2]
[315213854,1708942240680,-4231.45,0.00019178,2]
[315213856,1708942240689,-500.0,0.00019178,2]
[315213858,1708942240699,-166.117688,0.00019178,2]
[315213860,1708942240707,-165.843375,0.00019178,2]
[315213862,1708942240716,-166.666666,0.00019178,2]
[315213864,1708942240725,-240.7634129,0.0001937,2]
[315213865,1708942240735,-306.0,0.000194,2]
[315213866,1708942240744,-500.0,0.00019451,2]
[315213867,1708942240753,-500.0,0.00019451,2]
[315213869,1708942240762,-500.0,0.00019451,2]
[315213870,1708942240771,-500.0,0.00019451,2]
[315213871,1708942240781,-578.65,0.00019452,2]
[315213872,1708942240790,-174.1893576,0.00019452,2]
[315213873,1708942240799,-500.0,0.00019452,2]
[315213874,1708942240808,-500.0,0.00019452,2]
[315213875,1708942240818,-500.0,0.00019452,2]
[315213877,1708942240827,-500.0,0.00019452,2]
[315213878,1708942240836,-1168.32,0.00019452,2]
[315213880,1708942240846,-500.0,0.00019452,2]
[315213882,1708942240855,-500.0,0.00019452,2]
[315213884,1708942240864,-500.0,0.00019452,2]
[315213885,1708942240873,-500.0,0.00019452,2]
[315213887,1708942240883,-500.0,0.00019452,2]
[315213889,1708942240891,-641.08,0.00019452,2]
[315213891,1708942240901,-500.0,0.00019452,2]
[315213892,1708942240911,-693.68,0.00019452,2]
[315213893,1708942240920,-500.0,0.00019452,2]
[315213894,1708942240930,-500.0,0.00019452,2]
[315213895,1708942240939,-1560.3,0.00019452,2]
[315213896,1708942240948,-477.02525582,0.00019452,2]
[315213897,1708942240958,-3093.34,0.00019452,2]
[315213898,1708942240967,-500.0,0.00019452,2]
[315213899,1708942240976,-1315.56,0.00019452,2]
[315213900,1708942240985,-500.0,0.00019452,2]
[315213901,1708942240995,-399.1209651,0.00019452,2]
[315213902,1708942241004,-500.0,0.00019452,2]
[315213903,1708942241013,-500.0,0.00019452,2]
[315213904,1708942241023,-581.89,0.00019452,2]
[315213905,1708942241032,-1400.41,0.00019452,2]
[315213906,1708942241042,-500.0,0.00019452,2]
[315213907,1708942241051,-500.0,0.00019452,2]
[315213908,1708942241060,-551.4523923,0.00019452,2]
[315213909,1708942241069,-438.04326599,0.00019452,2]
[315213910,1708942241078,-500.0,0.00019452,2]
[315213911,1708942241087,-500.0,0.00019452,2]
[315213912,1708942241096,-500.0,0.00019452,2]
[315213913,1708942241106,-500.0,0.00019452,2]
[315213914,1708942241117,-531.08,0.00019452,2]
[315213915,1708942241126,-500.0,0.00019452,2]
[315213916,1708942241134,-500.0,0.00019452,2]
[315213917,1708942241145,-500.0,0.00019452,2]
[315213918,1708942241154,-500.0,0.00019452,2]
[315213919,1708942241164,-500.0,0.00019452,2]
[315213920,1708942241173,-500.0,0.00019452,2]
[315213921,1708942241183,-500.0,0.00019452,2]
[315213922,1708942241193,-500.0,0.00019452,2]
[315213923,1708942241203,-500.0,0.00019452,2]
[315213924,1708942241213,-500.0,0.00019452,2]
[315213925,1708942241222,-500.0,0.00019452,2]
[315213926,1708942241231,-500.0,0.00019452,2]
[315213927,1708942241241,-500.0,0.00019452,2]
[315213928,1708942241250,-500.0,0.00019452,2]
[315213929,1708942241259,-500.0,0.00019452,2]
[315213930,1708942241268,-1794.71,0.00019452,2]
[315213931,1708942241277,-500.0,0.00019452,2]
[315213932,1708942241287,-1457.65,0.00019452,2]
[315213933,1708942241296,-500.0,0.00019452,2]
[315213935,1708942241305,-500.0,0.00019452,2]
[315213937,1708942241314,-500.0,0.00019452,2]
[315213939,1708942241324,-500.0,0.00019452,2]
[315213940,1708942241333,-500.0,0.00019452,2]
[315213942,1708942241343,-500.0,0.00019452,2]
[315213943,1708942241352,-500.0,0.00019452,2]
[315213944,1708942241361,-487.01483259,0.00019452,2]
[315213945,1708942241370,-500.0,0.00019452,2]
[315213946,1708942241380,-1297.16,0.00019452,2]
[315213947,1708942241390,-1252.13,0.00019452,2]
[315213948,1708942241400,-741.42,0.00019452,2]
[315213950,1708942241409,-500.0,0.00019452,2]
[315213952,1708942241418,-910.9,0.00019452,2]
[315213954,1708942241427,-1754.31,0.00019452,2]
[315213956,1708942241436,-500.0,0.00019452,2]
[315213958,1708942241445,-22037.8,0.00019452,2]
[315213960,1708942241455,-500.0,0.00019452,2]
[315213962,1708942241463,-500.0,0.00019452,2]
[315213964,1708942241473,-500.0,0.00019452,2]
[315213966,1708942241482,-7967.99,0.00019452,2]
[315213968,1708942241491,-507.00886275,0.00019452,2]
[315213970,1708942241499,-2187.15,0.00019452,2]
[315213972,1708942241509,-500.0,0.00019452,2]
[315213973,1708942241517,-499.53437694,0.00019452,2]
[315213975,1708942241526,-840.49,0.00019452,2]
[315213976,1708942241535,-500.0,0.00019452,2]
[315213978,1708942241545,-500.0,0.00019452,2]
[315213980,1708942241555,-656.18,0.00019452,2]
[315213982,1708942241564,-500.0,0.00019452,2]
[315213984,1708942241573,-500.0,0.00019452,2]
[315213986,1708942241582,-500.0,0.00019452,2]
[315213988,1708942241591,-1279.79,0.00019452,2]
[315213990,1708942241600,-176.66942179,0.00019452,2]
[315213992,1708942241611,-3780.8,0.00019452,2]
[315213993,1708942241621,-203.42282125,0.00019452,2]
[315213995,1708942241631,-2694.47,0.00019452,2]
[315213997,1708942241640,-810.17,0.00019452,2]
[315213999,1708942241651,-2573.28,0.00019452,2]
[315214001,1708942241661,-2511.9,0.00019452,2]
[315214002,1708942241671,-1674.37,0.00019452,2]
[315214003,1708942241681,-500.0,0.00019452,2]
[315214004,1708942241691,-380.88443286,0.00019452,2]
[315214005,1708942241700,-500.0,0.00019452,2]
[315214006,1708942241710,-536.17501023,0.00019452,2]
[315214007,1708942241720,-22364.04,0.00019452,2]
[315214008,1708942241728,-500.0,0.00019452,2]
[315214009,1708942241738,-500.0,0.00019452,2]
[315214010,1708942241748,-544.61600458,0.00019452,2]
[315214011,1708942241757,-500.0,0.00019452,2]
[315214012,1708942241766,-500.0,0.00019452,2]
[315214013,1708942241776,-2229.23,0.00019452,2]
[315214014,1708942241785,-2069.57,0.00019452,2]
[315214015,1708942241795,-2035.92,0.00019452,2]
[315214016,1708942241804,-502.37578705,0.00019452,2]
[315214017,1708942241814,-500.81546176,0.00019452,2]
[315214018,1708942241823,-500.0,0.00019452,2]
[315214019,1708942241833,-500.0,0.00019452,2]
[315214020,1708942241843,-500.0,0.00019452,2]
[315214021,1708942241854,-500.0,0.00019452,2]
[315214022,1708942241863,-500.0,0.00019452,2]
[315214023,1708942241873,-500.0,0.00019452,2]
[315214024,1708942241882,-500.0,0.00019452,2]
[315214025,1708942241891,-500.0,0.00019452,2]
[315214026,1708942241901,-850.07,0.00019452,2]
[315214027,1708942241910,-10968.23,0.00019452,2]
[315214028,1708942241920,-2438.08,0.00019452,2]
[315214029,1708942241929,-500.0,0.00019452,2]
[315214030,1708942241938,-500.0,0.00019452,2]
[315214031,1708942241948,-500.0,0.00019452,2]
[315214032,1708942241957,-500.0,0.00019452,2]
[315214033,1708942241966,-238.35007482,0.00019452,2]
[315214034,1708942241975,-4231.45,0.00019452,2]
[315214035,1708942241988,-436.52101816,0.00019452,2]
[315214036,1708942241997,-182.85476532,0.00019474,2]
[315214037,1708942242006,-182.85476532,0.00019475,2]
[315214038,1708942242106,-182.85476532,0.00019477,2]
[315214039,1708942242117,-7330.41372259,0.00019494,2]
[315214040,1708942242127,-7330.41372259,0.00019497,2]
[315214041,1708942242136,-7330.41372259,0.00019499,2]
[315214042,1708942242146,-306.0,0.000195,2]
[315214044,1708942242156,-200.5826354,0.000195,2]
[315214045,1708942242165,-306.0,0.000195,2]
[315214046,1708942242174,-153.0,0.000195,2]
[315214047,1708942242183,-200.5826354,0.000195,2]
[315214048,1708942242192,-200.5826354,0.000195,2]
[315214049,1708942242202,-500.0,0.00019563,2]
[315214051,1708942242213,-3384.81215471,0.00019626,2]
[315214052,1708942242222,-166.666666,0.00019627,2]
[315214053,1708942242231,-165.13400114,0.00019657,2]
[315214054,1708942242240,-5529.96122929,0.000197,2]
[315214055,1708942242250,-5529.96122929,0.000197,2]
[315214056,1708942242259,-5529.96122929,0.000197,2]
[315214058,1708942242268,-200.86010344,0.00019715,2]
[315214059,1708942242278,-500.0,0.00019715,2]
[315214060,1708942242288,-500.0,0.00019715,2]
[315214061,1708942242298,-500.0,0.00019715,2]
[315214063,1708942242307,-500.0,0.00019715,2]
[315214065,1708942242316,-500.0,0.00019715,2]
[315214067,1708942242326,-500.0,0.00019715,2]
[315214069,1708942242335,-500.0,0.00019715,2]
[315214071,1708942242344,-256.44210122,0.00019715,2]
[315214073,1708942242353,-500.0,0.00019715,2]
[315214074,1708942242363,-500.0,0.00019715,2]
[315214075,1708942242373,-500.0,0.00019715,2]
[315214076,1708942242383,-500.0,0.00019715,2]
[315214078,1708942242393,-25878.22111287,0.00019716,2]
[315214079,1708942242402,-592.7475228,0.00019724,2]
[315214080,1708942242411,-747.05323267,0.00019724,2]
[315214082,1708942242420,-500.0,0.00019725,2]
[315214083,1708942242429,-500.0,0.00019725,2]
[315214084,1708942242438,-500.0,0.00019725,2]
[315214085,1708942242447,-500.0,0.00019725,2]
[315214086,1708942242456,-155.5812671,0.00019726,2]
[315214087,1708942242465,-578.65,0.00019726,2]
[315214088,1708942242473,-325.74621711,0.00019726,2]
[315214089,1708942242482,-500.0,0.00019726,2]
[315214090,1708942242491,-500.0,0.00019726,2]
[315214091,1708942242500,-500.0,0.00019726,2]
[315214092,1708942242509,-1168.32,0.00019726,2]
[315214093,1708942242518,-195.15697486,0.00019726,2]
[315214094,1708942242526,-500.0,0.00019726,2]
[315214095,1708942242535,-500.0,0.00019726,2]
[315214096,1708942242545,-500.0,0.00019726,2]
[315214097,1708942242554,-507.80796114,0.00019726,2]
[315214098,1708942242563,-641.08,0.00019726,2]
[315214099,1708942242572,-693.68,0.00019726,2]
[315214100,1708942242581,-810.1601,0.00019726,2]
[315214101,1708942242590,-810.1601,0.00019726,2]
[315214102,1708942242600,-500.0,0.00019726,2]
[315214103,1708942242608,-500.0,0.00019726,2]
[315214104,1708942242618,-1560.3,0.00019726,2]
[315214105,1708942242627,-3093.34,0.00019726,2]
[315214106,1708942242636,-501.48262876,0.00019726,2]
[315214107,1708942242645,-1315.56,0.00019726,2]
[315214108,1708942242654,-619.68506579,0.00019726,2]
[315214109,1708942242663,-500.0,0.00019726,2]
[315214110,1708942242672,-500.0,0.00019726,2]
[315214111,1708942242681,-581.89,0.00019726,2]
[315214112,1708942242690,-1400.41,0.00019726,2]
[315214113,1708942242699,-500.0,0.00019726,2]
[315214114,1708942242708,-508.64002911,0.00019726,2]
[315214115,1708942242718,-500.0,0.00019726,2]
[315214116,1708942242727,-531.08,0.00019726,2]
[315214117,1708942242736,-500.0,0.00019726,2]
[315214118,1708942242746,-500.0,0.00019726,2]
[315214119,1708942242755,-504.12794573,0.00019726,2]
[315214120,1708942242765,-151.0,0.00019726,2]
[315214121,1708942242774,-607.75992688,0.00019726,2]
[315214122,1708942242783,-151.0,0.00019726,2]
[315214123,1708942242794,-500.0,0.00019726,2]
[315214124,1708942242804,-450.65957018,0.00019726,2]
[315214125,1708942242813,-500.0,0.00019726,2]
[315214126,1708942242823,-500.0,0.00019726,2]
[315214127,1708942242833,-500.0,0.00019726,2]
[315214128,1708942242842,-1794.71,0.00019726,2]
[315214129,1708942242851,-500.0,0.00019726,2]
[315214130,1708942242860,-1457.65,0.00019726,2]
[315214131,1708942242869,-500.0,0.00019726,2]
[315214132,1708942242879,-502.04463839,0.00019726,2]
[315214133,1708942242888,-500.0,0.00019726,2]
[315214134,1708942242897,-317.02712957,0.00019726,2]
[315214135,1708942242907,-500.0,0.00019726,2]
[315214136,1708942242917,-500.0,0.00019726,2]
[315214137,1708942242926,-500.0,0.00019726,2]
[315214138,1708942242937,-502.36151926,0.00019726,2]
[315214139,1708942242946,-1297.16,0.00019726,2]
[315214140,1708942242956,-1252.13,0.00019726,2]
[315214141,1708942242965,-741.42,0.00019726,2]
[315214142,1708942242974,-500.0,0.00019726,2]
[315214143,1708942242984,-910.9,0.00019726,2]
[315214144,1708942242992,-1754.31,0.00019726,2]
[315214145,1708942243001,-505.63704845,0.00019726,2]
[315214146,1708942243010,-4768.13262467,0.00019726,2]
[315214182,1708942243647,-2750.32170438,0.00019177,2]
[315214184,1708942243658,-1510.26,0.00019177,2]
[315214185,1708942243669,-438.64779516,0.00019177,2]
[315214187,1708942243679,-157.67117728,0.00019178,2]
[315214189,1708942243690,-342.32882272,0.00019178,2]
[315214191,1708942243699,-212.16622503,0.00019178,2]
[315214222,1708942249018,-614.63404528,0.00019177,2]
[315214223,1708942249029,-1245.11416608,0.00019177,2]
[315214224,1708942249039,-391.63377497,0.00019178,2]
[315214225,1708942249052,-500.0,0.00019178,2]
[315214226,1708942249062,-254.14174151,0.00019178,2]
[315214229,1708942948040,325.610573,0.00016827,2]
[315214241,1708943134862,151.54091347,0.00016073,2]
[315214243,1708943306516,151.5378822,0.00015193,2]
[315214270,1708943432006,-162.805286,0.00016957,2]
[315214271,1708943432015,-653.04920302,0.00016974,2]
[315214272,1708943432025,-155.67030772,0.00016974,2]